bitfinex/quotes_ETHUSD_20250715
["timestamp","ask_amount","ask_price","bid_price","bid_amount"]
[1752552669674,0.0350265,2942.5,2941.3,10.0]
[1752552669841,0.001,2942.5,2941.5,3.39962604]
[1752552670167,0.001,2942.5,2941.9,0.266]
[1752552670370,0.001,2942.5,2942.4,3.39858618]
[1752552670743,0.001,2942.5,2942.4,3.86958618]
[1752552671155,0.001,2942.5,2942.4,4.16957204]
[1752552671369,0.001,2942.5,2942.4,14.00215137]
[1752552671565,0.001,2943.2,2943.1,3.39777785]
[1752552671766,0.001,2943.2,2943.1,3.43175562]
[1752552671952,0.001,2943.2,2943.1,3.90275562]
[1752552672153,0.001,2943.2,2943.1,4.16875562]
[1752552672543,0.001,2943.2,2943.1,12.17477785]
[1752552672943,0.001,2943.2,2943.1,13.73204595]
[1752552673145,0.001,2943.2,2943.1,4.21377785]
[1752552673349,0.001,2943.2,2943.1,12.73877785]
[1752552673547,1e-08,2943.7,2943.6,3.3972007]
[1752552673750,1e-08,2943.7,2943.6,13.4311727]
[1752552673950,1e-08,2943.7,2943.6,13.8682007]
[1752552674260,1e-08,2943.7,2943.6,15.5947537]
[1752552674660,1e-08,2943.7,2943.6,23.6557537]
[1752552675074,1e-08,2943.7,2943.6,23.9217537]
[1752552675558,3.3967068,2944.9,2943.7,3.3970817]
[1752552675760,0.33967068,2944.8,2943.6,20.535553]
[1752552675968,3.39672665,2944.9,2943.7,0.471]
[1752552676169,0.001,2944.9,2943.8,0.03396969]
[1752552676396,0.001,2944.9,2944.0,3.39673913]
[1752552676563,0.001,2944.9,2944.8,3.39581635]
[1752552676890,0.001,2944.9,2944.8,3.86681635]
[1752552677210,0.001,2944.9,2944.8,3.90077451]
[1752552677348,0.001,2944.9,2944.6,8.328]
[1752552677696,0.001,2944.9,2944.6,3.39603007]
[1752552677858,0.001,2944.9,2944.0,0.471]
[1752552678059,0.001,2944.9,2944.0,3.86773786]
[1752552678396,0.001,2944.9,2944.8,3.39581635]
[1752552678600,0.001,2944.9,2944.7,3.39588153]
[1752552678793,0.001,2944.9,2944.8,0.03395816]
[1752552679356,0.001,2944.9,2944.8,0.1696]
[1752552679756,0.001,2944.9,2944.8,3.56541635]
[1752552679957,0.001,2944.9,2944.8,4.76651083]
[1752552680157,0.001,2944.9,2944.8,5.03251083]
[1752552680672,0.001,2944.9,2944.8,4.30241635]
[1752552680877,0.001,2944.9,2944.8,4.33637451]
[1752552681672,10.778811,2945.9,2945.2,3.39534935]
[1752552681861,10.778811,2945.9,2944.8,0.94055816]
[1752552681862,14.00884658,2946.1,2945.6,0.1696]
[1752552682195,10.0,2945.9,2945.6,0.1696]
[1752552682369,0.4439,2946.0,2945.6,0.1696]
[1752552682569,0.0340265,2946.0,2945.6,0.1696]
[1752552682769,3.39456362,2945.9,2945.6,0.1696]
[1752552682985,3.39467061,2945.8,2945.6,0.1696]
[1752552683188,3.39456902,2945.9,2945.6,0.1696]
[1752552683364,10.1706,2946.1,2945.6,0.1696]
[1752552683365,0.0340265,2946.0,2945.6,0.1696]
[1752552683558,0.001,2946.1,2945.2,0.03395355]
[1752552683798,0.001,2946.1,2945.8,0.1696]
[1752552683998,0.87845,2946.1,2945.8,0.1696]
[1752552685268,0.001,2946.1,2946.0,3.56403312]
[1752552685579,0.001,2946.1,2946.0,4.06897745]
[1752552686365,0.001,2946.1,2946.0,4.03503312]
[1752552686783,0.001,2946.1,2946.0,0.1696]
[1752552687206,0.001,2946.1,2946.0,3.56403312]
[1752552687633,0.001,2946.1,2946.0,0.1696]
[1752552688267,4.66211791,2946.1,2945.3,0.2662]
[1752552688503,4.66211791,2946.1,2945.2,3.39532663]
[1752552688504,0.46621179,2946.0,2945.8,0.1696]
[1752552688804,3.83844835,2945.9,2945.8,0.1696]
[1752552688991,0.4779265,2945.9,2945.5,0.1696]
[1752552689195,0.4439,2945.8,2945.5,0.1696]
[1752552689411,3.83860124,2945.8,2945.5,0.1696]
[1752552689606,4.62889141,2945.8,2945.5,0.1696]
[1752552689776,3.39489407,2945.6,2945.5,0.1696]
[1752552689980,3.39523987,2945.3,2945.2,0.1696]
[1752552690333,3.39523987,2945.3,2944.7,0.1696]
[1752552690334,0.7507,2945.1,2944.7,0.1696]
[1752552690623,0.7507,2945.1,2944.1,0.1696]
[1752552690624,3.39616233,2944.5,2944.1,0.1696]
[1752552690771,8.4509265,2944.4,2943.9,0.1696]
[1752552690974,7.967,2944.3,2943.5,0.471]
[1752552691178,7.967,2944.3,2944.2,0.1696]
[1752552691370,11.80729303,2944.3,2944.2,0.3109171]
[1752552691833,10.99230411,2944.3,2944.2,0.3109171]
[1752552691967,0.9203,2944.5,2944.2,0.3109171]
[1752552692175,7.971,2944.7,2944.3,0.34488103]
[1752552692430,7.971,2944.7,2944.4,0.4805171]
[1752552692632,0.1696,2944.9,2944.5,0.3109171]
[1752552692789,0.1696,2944.9,2944.6,0.3109171]
[1752552692993,7.973,2945.0,2944.8,0.1696]
[1752552693188,7.973,2945.0,2944.9,0.3109171]
[1752552693414,3.56486014,2945.3,2944.9,0.3109171]
[1752552693415,0.1696,2945.3,2944.9,0.3109171]
[1752552693567,8.7563,2945.4,2945.0,0.3109171]
[1752552693772,8.7563,2945.4,2945.1,0.3109171]
[1752552693968,0.1696,2945.5,2945.2,0.3109171]
[1752552694272,7.969,2945.5,2945.3,0.3109171]
[1752552694472,9.2098,2945.5,2945.4,0.3109171]
[1752552695282,0.7572,2945.8,2945.4,3.70595905]
[1752552695510,8.5919,2946.0,2945.7,3.39477883]
[1752552695720,7.963,2945.9,2945.8,3.7055053]
[1752552695930,7.963,2945.9,2945.8,0.3109171]
[1752552696072,8.4069,2945.9,2945.8,0.3109171]
[1752552696422,0.6135,2945.9,2945.8,0.3109171]
[1752552696575,7.963,2945.9,2945.8,0.3109171]
[1752552696912,8.148,2946.0,2945.9,3.39454835]
[1752552697112,0.001,2946.1,2946.0,3.39443312]
[1752552697336,0.001,2946.1,2946.0,3.70535022]
[1752552697617,0.001,2946.1,2946.0,3.87495022]
[1752552698421,0.001,2946.1,2946.0,3.56403312]
[1752552698581,0.001,2946.1,2946.0,3.87749893]
[1752552698781,0.001,2946.1,2946.0,3.91144326]
[1752552699196,0.001,2946.1,2946.0,3.91140063]
[1752552699903,0.001,2946.1,2946.0,3.8774563]
[1752552700106,0.001,2946.1,2946.0,4.38240063]
[1752552700317,0.001,2946.1,2946.0,4.3484563]
[1752552700619,0.001,2946.1,2946.0,4.77023903]
[1752552700822,0.001,2946.1,2946.0,4.7362947]
[1752552701020,0.001,2946.1,2946.0,4.77023903]
[1752552701528,1e-08,2946.3,2946.2,3.6604027]
[1752552701717,0.001,2946.9,2946.8,3.3935116]
[1752552702026,0.001,2946.9,2946.8,3.91203255]
[1752552702211,0.001,2946.9,2946.8,3.87809744]
[1752552702525,0.001,2946.9,2946.8,4.31799744]
[1752552703027,0.001,2946.9,2946.8,3.87809744]
[1752552703399,0.001,2946.9,2946.8,0.48458584]
[1752552704008,0.4541,2946.9,2946.8,0.48458584]
[1752552704314,4.62799645,2946.9,2946.8,0.31498584]
[1752552704489,0.7815,2946.9,2946.8,0.31498584]
[1752552704693,0.001,2946.9,2946.8,0.48458584]
[1752552705033,0.001,2946.9,2946.8,3.87809744]
[1752552705186,0.001,2946.9,2946.8,3.5631116]
[1752552705837,0.001,2946.9,2946.8,4.0030116]
[1752552706252,0.001,2946.9,2946.8,4.03694671]
[1752552707899,1e-08,2946.9,2946.8,4.80662232]
[1752552708098,1e-08,2946.9,2946.8,15.35662232]
[1752552708341,1e-08,2946.9,2946.8,15.32268721]
[1752552708544,1e-08,2946.9,2946.8,13.5631116]
[1752552708716,1e-08,2946.9,2946.8,3.5631116]
[1752552710245,1e-08,2946.9,2946.8,0.1696]
[1752552710605,0.45310001,2946.9,2946.8,0.1696]
[1752552710942,3.84649646,2946.9,2946.8,0.1696]
[1752552711103,3.39362428,2946.8,2946.2,3.39414315]
[1752552711303,1.18048081,2946.9,2946.6,0.1696]
[1752552711504,3.39362676,2946.7,2946.6,0.1696]
[1752552711735,3.39390464,2946.5,2945.9,3.39449547]
[1752552711946,3.39390464,2946.5,2946.4,0.1696]
[1752552712249,4.65920464,2946.5,2946.4,0.1696]
[1752552712445,1.2653,2946.5,2946.4,0.1696]
[1752552712748,7.791,2946.8,2946.4,0.1696]
[1752552712909,7.791,2946.8,2946.6,3.39372935]
[1752552713108,1.26530001,2946.9,2946.7,0.1696]
[1752552713346,7.787,2946.8,2946.7,0.1696]
[1752552713643,8.2401,2946.8,2946.7,0.1696]
[1752552713844,7.784,2946.8,2946.7,3.56322676]
[1752552714002,7.78400001,2946.9,2946.8,3.3935116]
[1752552714638,7.78400001,2946.9,2946.8,3.5631116]
[1752552715015,1e-08,2946.9,2946.8,3.5631116]
[1752552715218,1e-08,2946.9,2946.8,3.59704671]
[1752552715408,1e-08,2946.9,2946.8,4.29611343]
[1752552715614,1e-08,2946.9,2946.8,4.26217832]
[1752552715824,1e-08,2946.9,2946.8,3.5631116]
[1752552716431,1e-08,2946.9,2946.8,4.0030116]
[1752552717253,1e-08,2946.9,2946.8,3.5631116]
[1752552720238,1e-08,2946.9,2946.8,3.59704671]
[1752552720441,1e-08,2946.9,2946.8,3.5631116]
[1752552720820,1e-08,2946.9,2946.8,4.29272005]
[1752552721015,1e-08,2946.9,2946.8,4.69868494]
[1752552721522,1e-08,2946.9,2946.8,3.5631116]
[1752552721752,1e-08,2946.9,2946.8,4.03694671]
[1752552721920,1e-08,2946.9,2946.8,4.0030116]
[1752552723052,1e-08,2946.9,2946.8,3.5631116]
[1752552724260,1e-08,2946.9,2946.8,3.59704671]
[1752552724424,1e-08,2946.9,2946.8,3.5631116]
[1752552724630,1e-08,2946.9,2946.8,3.59704671]
[1752552724823,1e-08,2946.9,2946.8,4.7326199]
[1752552725038,1e-08,2946.9,2946.8,4.69868479]
[1752552725857,1e-08,2946.9,2946.8,4.25878479]
[1752552726164,1e-08,2946.9,2946.8,3.5631116]
[1752552727174,1e-08,2946.9,2946.8,4.03694671]
[1752552727464,1e-08,2946.9,2946.8,14.85314671]
[1752552727670,1e-08,2946.9,2946.8,14.8192116]
[1752552727842,1e-08,2946.9,2946.8,3.5631116]
[1752552728572,0.45310001,2946.9,2946.8,0.1696]
[1752552729845,0.45310001,2946.9,2946.8,3.5631116]
[1752552730039,1e-08,2946.9,2946.8,3.5631116]
[1752552730241,1e-08,2946.9,2946.8,0.1696]
[1752552730531,1e-08,2946.9,2946.8,3.5631116]
[1752552731244,0.45450001,2946.9,2946.8,0.1696]
[1752552731885,1e-08,2946.9,2946.8,3.5631116]
[1752552732041,1e-08,2946.9,2946.8,4.26217837]
[1752552732246,1e-08,2946.9,2946.8,4.29611348]
[1752552732670,1e-08,2946.9,2946.8,4.29811348]
[1752552733173,1e-08,2946.9,2946.8,4.72941348]
[1752552733377,1e-08,2946.9,2946.8,14.72941348]
[1752552733680,1e-08,2946.9,2946.8,15.24547837]
[1752552733881,1e-08,2947.3,2947.2,3.39305103]
[1752552734071,1e-08,2947.3,2947.2,4.07167206]
[1752552734379,1e-08,2947.3,2947.2,4.67257206]
[1752552735467,0.001,2947.5,2947.4,3.39282079]
[1752552735778,0.001,2947.5,2947.4,3.65902079]
[1752552735977,0.001,2948.1,2948.0,3.39213025]
[1752552736343,0.001,2948.1,2948.0,3.56173025]
[1752552737277,0.001,2948.1,2948.0,0.1696]
[1752552737480,0.001,2948.1,2948.0,3.56173025]
[1752552738848,0.001,2948.1,2948.0,0.1696]
[1752552739043,0.4555,2948.1,2948.0,0.1696]
[1752552739447,0.001,2948.1,2948.0,0.1696]
[1752552739849,0.001,2948.1,2948.0,3.56173025]
[1752552740049,0.001,2948.1,2948.0,4.29104833]
[1752552740314,1e-08,2948.1,2948.0,22.28934833]
[1752552740592,1e-08,2948.1,2948.0,22.52162703]
[1752552740950,1e-08,2948.1,2948.0,23.07162703]
[1752552743956,0.001,2948.9,2948.8,3.39120998]
[1752552744180,0.001,2948.9,2948.8,11.76826306]
[1752552744496,0.001,2948.9,2948.8,12.19956306]
[1752552744791,1e-08,2948.9,2948.8,22.19956306]
[1752552745087,1e-08,2948.9,2948.8,22.74956306]
[1752552746653,0.001,2949.2,2949.1,3.390865]
[1752552746853,0.7737,2950.0,2949.9,3.38994542]
[1752552747095,1.2282,2950.0,2949.9,3.55874542]
[1752552747469,1.2282,2950.0,2949.9,0.1688]
[1752552747996,4.6180305,2950.0,2949.9,0.1688]
[1752552748196,4.61808962,2950.0,2949.6,0.1688]
[1752552748394,0.4545,2949.9,2949.6,3.55903142]
[1752552748555,0.7737,2950.0,2949.8,3.39006034]
[1752552748762,0.7737,2950.0,2949.9,3.59264487]
[1752552748953,0.001,2950.1,2950.0,3.3898305]
[1752552750376,0.001,2950.1,2950.0,3.4237288]
[1752552750703,0.001,2950.1,2950.0,10.94755891]
[1752552751006,0.001,2950.1,2950.0,5.58716093]
[1752552751300,0.001,2950.4,2950.3,3.65568581]
[1752552751301,1e-08,2950.4,2950.3,3.65568581]
[1752552751496,1e-08,2950.4,2950.3,11.31538066]
[1752552751806,1e-08,2950.4,2950.3,3.55828581]
[1752552752091,0.45450001,2950.4,2950.3,0.1688]
[1752552752299,1e-08,2950.4,2950.3,3.55828581]
[1752552752457,1e-08,2950.4,2950.3,15.42957431]
[1752552752661,1e-08,2950.4,2950.3,15.97957431]
[1752552753992,1e-08,2950.4,2950.3,23.44157431]
[1752552754855,1e-08,2950.4,2950.3,23.70777431]
[1752552755596,1e-08,2950.4,2950.3,16.24577431]
[1752552755800,1e-08,2950.4,2950.3,15.69577431]
[1752552756123,1e-08,2950.4,2950.3,31.22660442]
[1752552756397,1e-08,2950.4,2950.3,23.71777431]
[1752552756912,0.7618,2951.6,2951.5,3.38810774]
[1752552757267,0.001,2951.6,2951.5,3.55690774]
[1752552757571,0.826,2952.4,2951.9,3.38764863]
[1752552757756,0.826,2952.4,2952.3,3.38718964]
[1752552757963,0.826,2952.4,2952.3,3.55598964]
[1752552758290,0.001,2952.5,2952.4,3.38707492]
[1752552758760,0.001,2952.5,2952.4,3.64258808]
[1752552758956,0.001,2952.5,2952.4,11.13545882]
[1752552759157,0.001,2952.5,2952.4,11.10158808]
[1752552759423,0.4555,2952.5,2952.3,3.55588102]
[1752552759579,1.2766,2952.4,2952.3,0.1688]
[1752552759958,0.001,2952.5,2952.4,3.38707492]
[1752552760196,0.001,2952.5,2952.4,4.86195212]
[1752552760395,0.001,2952.5,2952.3,3.55594154]
[1752552760704,0.4385,2952.5,2952.4,3.42094566]
[1752552760860,0.4385,2952.5,2952.4,3.38707492]
[1752552761062,0.4385,2952.5,2952.3,0.1688]
[1752552761282,1.2033,2952.4,2952.3,0.1688]
[1752552762321,0.001,2952.5,2952.3,3.55598964]
[1752552762485,0.001,2952.5,2952.4,3.38707492]
[1752552762969,0.001,2952.5,2952.4,3.42094566]
[1752552763176,0.001,2952.5,2952.4,3.38707492]
[1752552764028,0.4385,2952.5,2952.4,3.38707492]
[1752552764695,0.4385,2952.5,2952.3,0.1688]
[1752552764696,0.8172,2952.4,2952.3,0.1688]
[1752552764921,1.71895745,2952.4,2952.3,0.1688]
[1752552765115,1.2547,2952.4,2952.3,0.1688]
[1752552766309,0.001,2952.5,2952.4,3.38707492]
[1752552766482,0.001,2952.5,2952.4,3.42094566]
[1752552767591,0.001,2952.5,2952.4,10.85207492]
[1752552768322,0.001,2952.5,2952.4,3.38707492]
[1752552768625,0.7519,2952.5,2952.4,10.85307492]
[1752552768830,0.001,2952.5,2952.4,3.38707492]
[1752552769030,0.001,2952.5,2952.4,4.86175205]
[1752552769541,0.001,2952.5,2952.4,10.85007492]
[1752552770403,0.001,2952.5,2952.4,3.38707492]
[1752552770589,0.4385,2952.5,2952.4,10.84507492]
[1752552771317,0.001,2952.5,2952.4,10.84507492]
[1752552772704,0.001,2952.5,2952.4,3.38707492]
[1752552772925,0.001,2952.5,2952.4,10.80007492]
[1752552773227,0.001,2952.5,2952.4,3.38707492]
[1752552773892,0.001,2952.5,2952.4,4.85505205]
[1752552774329,0.001,2953.1,2952.4,4.85505205]
[1752552774330,0.001,2953.1,2953.0,3.38638672]
[1752552774908,0.4385,2953.1,2953.0,0.1688]
[1752552775239,0.4385,2953.1,2952.8,0.1688]
[1752552775792,3.38644244,2953.0,2952.8,0.1688]
[1752552775992,1.2235,2952.9,2952.8,0.1688]
[1752552776733,3.38671582,2952.8,2952.2,3.38725262]
[1752552776929,0.4715265,2952.7,2952.3,0.1688]
[1752552777233,3.38730037,2952.3,2951.7,3.38780208]
[1752552777449,0.4375,2952.2,2952.0,0.1688]
[1752552778107,0.4375,2952.1,2952.0,0.1688]
[1752552778833,0.4375,2952.1,2952.0,3.55633387]
[1752552779029,0.4375,2952.1,2952.0,0.1688]
[1752552780204,0.4375,2952.3,2952.0,3.55629387]
[1752552780533,0.4375,2952.3,2952.2,0.1688]
[1752552780729,0.8274,2952.4,2952.2,3.55610438]
[1752552781032,0.8274,2952.4,2952.3,3.38718964]
[1752552781426,1.2649,2952.4,2952.2,0.1688]
[1752552781614,3.85876387,2952.3,2951.4,10.0]
[1752552781802,0.92299639,2952.2,2951.8,3.55653111]
[1752552782136,0.4375,2952.1,2951.8,0.1688]
[1752552782309,0.4375,2952.1,2952.0,3.38753387]
[1752552782511,0.8274,2952.4,2952.0,0.1688]
[1752552782712,1.2649,2952.4,2952.2,3.38721216]
[1752552783036,1.2649,2952.4,2951.8,3.38771421]
[1752552783037,0.7808,2952.7,2952.3,3.55598596]
[1752552783212,1.2183,2952.7,2952.3,3.55596466]
[1752552783410,0.4715265,2952.6,2951.6,10.0]
[1752552783614,0.4715265,2952.6,2951.8,10.0]
[1752552783814,0.4715265,2952.6,2952.2,3.5560312]
[1752552784017,0.4715265,2952.6,2952.2,0.1688]
[1752552784243,0.4375,2952.5,2952.2,0.1688]
[1752552784440,0.4375,2952.5,2952.2,3.5560975]
[1752552784742,0.4375,2952.4,2952.3,3.70282602]
[1752552785239,0.7808,2952.7,2952.6,3.38684549]
[1752552785404,0.7808,2952.7,2952.6,3.87128187]
[1752552785603,0.001,2953.1,2952.6,3.87128187]
[1752552785839,0.7601,2953.0,2952.9,3.3865014]
[1752552786143,0.4385,2953.1,2953.0,3.55518672]
[1752552786443,4.14737205,2953.1,2953.0,0.31576076]
[1752552786642,0.55,2952.8,2952.4,0.1688]
[1752552786803,0.7601,2952.6,2952.5,0.31614987]
[1752552787138,1.1976,2952.6,2952.5,0.31614987]
[1752552789252,4.58444549,2952.6,2952.5,0.31614987]
[1752552789759,1.1976,2952.6,2952.5,0.31614987]
[1752552792033,1.2316265,2952.6,2952.5,0.31614987]
[1752552792821,1.1976,2952.6,2952.5,0.31614987]
[1752552793242,1.1976,2952.6,2952.5,3.70311007]
[1752552793621,0.7601,2952.6,2952.5,3.70311007]
[1752552793951,0.8132,2953.0,2952.8,3.38661609]
[1752552794131,0.8132,2953.0,2952.9,3.70265127]
[1752552794445,0.001,2953.1,2953.0,3.38638672]
[1752552794962,0.001,2953.1,2953.0,3.70277906]
[1752552795346,0.001,2953.1,2953.0,0.31639234]
[1752552795552,0.4556,2953.1,2953.0,3.70283684]
[1752552795758,0.001,2953.1,2953.0,3.70283684]
[1752552796847,0.001,2953.1,2953.0,0.31645012]
[1752552797350,0.001,2953.1,2953.0,3.70283684]
[1752552797715,0.001,2953.1,2953.0,0.31645012]
[1752552798019,0.001,2953.1,2953.0,3.70283684]
[1752552798215,0.001,2953.1,2953.0,14.46251377]
[1752552798528,0.001,2953.1,2953.0,14.42864991]
[1752552800722,0.001,2953.1,2953.0,1.04226319]
[1752552801031,0.4556,2953.1,2953.0,0.31645012]
[1752552801551,1.2811,2953.1,2953.0,0.31645012]
[1752552801721,4.66737205,2953.1,2953.0,0.31645012]
[1752552801921,12.20837205,2953.1,2953.0,0.31645012]
[1752552802121,22.20837205,2953.1,2953.0,0.31645012]
[1752552803152,1.8311,2953.1,2953.0,0.31645012]
[1752552803353,8.8191,2953.1,2952.3,3.38714594]
[1752552803553,3.93655715,2952.9,2952.5,0.1688]
[1752552803754,0.0340265,2952.8,2952.6,0.31642648]
[1752552803954,5.21683078,2952.7,2952.0,3.38951323]
[1752552804156,6.9980265,2952.6,2952.2,3.55604209]
[1752552804360,6.9980265,2952.6,2952.3,3.70361932]
[1752552804361,0.4546,2952.5,2952.3,3.70361932]
[1752552804524,6.964,2952.6,2952.5,3.3869602]
[1752552804725,6.964,2952.6,2952.5,3.70339709]
[1752552805056,6.956,2952.8,2952.7,3.38673078]
[1752552805254,6.953,2952.9,2952.7,3.70316767]
[1752552805462,0.8255,2953.0,2952.8,0.31643689]
[1752552805639,0.001,2953.1,2953.0,3.38638672]
[1752552805823,6.944,2953.1,2953.0,3.87162361]
[1752552806243,0.001,2953.1,2953.0,3.87162361]
[1752552806445,0.4556,2953.1,2953.0,0.48523689]
[1752552806786,0.001,2953.1,2953.0,3.87162361]
[1752552807152,0.001,2953.1,2953.0,4.32742791]
[1752552808669,0.001,2953.1,2953.0,0.94104119]
[1752552808873,0.001,2953.1,2953.0,0.48523689]
[1752552809076,0.001,2953.1,2953.0,3.87162361]
[1752552809367,0.4556,2953.1,2953.0,0.48523689]
[1752552809569,0.001,2953.1,2953.0,3.87162361]
[1752552810069,0.4556,2953.1,2953.0,0.48523689]
[1752552810486,12.7829347,2953.1,2953.0,0.31643689]
[1752552810769,12.9517347,2953.1,2953.0,0.31643689]
[1752552811339,9.01546265,2953.1,2953.0,0.31643689]
[1752552811562,11.66267205,2953.1,2953.0,0.31643689]
[1752552811938,8.2764,2953.1,2953.0,0.31643689]
[1752552812138,8.2764,2953.1,2953.0,0.31606719]
[1752552812437,6.871,2953.1,2953.0,3.70245391]
[1752552812747,6.871,2953.1,2953.0,3.70245581]
[1752552813148,6.871,2953.1,2953.0,0.31606909]
[1752552813376,6.871,2953.1,2953.0,3.70245581]
[1752552813762,0.001,2953.1,2953.0,3.70245581]
[1752552813964,0.001,2953.1,2953.0,4.42823092]
[1752552814166,0.001,2953.1,2953.0,3.70245581]
[1752552814368,0.001,2953.1,2953.0,0.31606909]
[1752552814569,0.4556,2953.1,2953.0,0.31606909]
[1752552814787,3.84187205,2953.1,2953.0,0.31606909]
[1752552814984,0.4896265,2953.1,2953.0,0.31606909]
[1752552815159,3.87596919,2953.1,2952.7,0.1688]
[1752552815354,0.55,2952.8,2952.0,0.002]
[1752552815571,0.0340265,2952.7,2952.0,0.002]
[1752552815823,6.843,2952.6,2952.0,3.42335201]
[1752552815959,6.843,2952.6,2952.0,0.4705]
[1752552816152,6.843,2952.6,2952.5,3.3869602]
[1752552816360,0.4556,2953.1,2952.0,0.4705]
[1752552816361,6.836,2952.8,2952.3,3.38715844]
[1752552816671,7.2906,2952.8,2952.3,0.38556584]
[1752552816860,7.2906,2952.8,2952.5,3.38688006]
[1752552817054,0.4886265,2952.7,2952.5,3.38688006]
[1752552817260,0.4546,2952.7,2952.1,10.0]
[1752552817593,6.836,2952.8,2952.7,3.38673078]
[1752552817594,6.829,2952.8,2952.7,3.38673078]
[1752552817757,6.829,2952.8,2952.6,3.38679791]
[1752552817958,0.001,2953.1,2952.9,3.38640387]
[1752552818160,6.817,2953.0,2952.9,3.38640387]
[1752552818360,6.817,2953.0,2952.2,0.4685]
[1752552818361,7.2716,2953.0,2952.0,0.002]
[1752552818564,0.0340265,2952.9,2952.5,3.38689322]
[1752552818780,0.4546,2952.8,2952.2,3.38721553]
[1752552819062,0.8196,2952.6,2952.1,3.38736362]
[1752552819285,7.2956265,2952.5,2952.2,3.38729141]
[1752552819493,0.4546,2952.4,2952.0,3.38942959]
[1752552819865,6.807,2952.5,2952.0,3.38952668]
[1752552820066,0.4546,2952.4,2952.0,3.38952668]
[1752552820292,0.4546,2952.3,2952.1,3.38740563]
[1752552820802,0.0340265,2952.4,2952.2,3.38730438]
[1752552821093,0.4947265,2952.4,2952.1,3.38736359]
[1752552821881,0.4947265,2952.4,2952.2,3.38729955]
[1752552822085,0.4607,2952.3,2952.0,0.002]
[1752552822289,0.4607,2952.3,2952.0,3.38945146]
[1752552822811,0.4607,2952.2,2952.0,0.002]
[1752552822976,0.4607,2952.2,2952.0,3.3895065]
[1752552823303,0.4607,2952.2,2952.0,0.002]
[1752552823304,3.84811912,2952.1,2952.0,0.002]
[1752552823605,7.2447265,2952.1,2952.0,0.002]
[1752552823907,10.59811912,2952.1,2952.0,0.002]
[1752552824267,12.48834158,2952.1,2952.0,0.002]
[1752552824601,22.94904158,2952.1,2952.0,0.002]
[1752552826803,11.34011912,2952.1,2952.0,0.002]
[1752552827004,21.34011912,2952.1,2952.0,0.002]
[1752552827207,3.38822253,2951.4,2951.3,0.002]
[1752552827533,11.44652253,2951.4,2951.3,0.002]
[1752552827685,11.90722253,2951.4,2951.3,0.002]
[1752552828421,21.90722253,2951.4,2951.3,0.002]
[1752552831289,14.70009663,2950.9,2950.8,0.002]
[1752552831485,21.36309663,2950.9,2950.8,0.002]
[1752552831734,21.82379663,2950.9,2950.8,0.002]
[1752552832038,21.82379663,2950.9,2950.8,1e-08]
[1752552832189,4.1510156,2950.1,2950.0,0.002]
[1752552832390,11.3570156,2950.1,2950.0,0.002]
[1752552832698,11.8177156,2950.1,2950.0,0.002]
[1752552833761,5.1617156,2950.1,2950.0,0.002]
[1752552834036,7.6011265,2950.1,2950.0,0.002]
[1752552834334,10.9568156,2950.1,2950.0,0.002]
[1752552834538,11.4175156,2950.1,2950.0,0.002]
[1752552834888,11.9675156,2950.1,2950.0,0.002]
[1752552835420,11.9565156,2950.1,2950.0,0.002]
[1752552835741,8.1051,2950.1,2950.0,0.002]
[1752552836793,11.9555156,2950.1,2950.0,0.002]
[1752552837930,11.9295156,2950.1,2950.0,0.002]
[1752552838486,1.9408,2950.1,2950.0,0.002]
[1752552838688,8.5628265,2950.1,2950.0,0.002]
[1752552839007,11.9185156,2950.1,2950.0,0.002]
[1752552839615,21.9185156,2950.1,2950.0,0.002]
[1752552840738,0.8272,2950.5,2950.0,3.3918305]
[1752552841036,6.6000265,2950.4,2950.0,0.1708]
[1752552841202,6.6000265,2950.4,2950.1,3.38965196]
[1752552841403,6.566,2950.4,2950.0,3.56060217]
[1752552841634,0.7658,2950.8,2950.5,3.38917152]
[1752552841934,6.5900265,2950.7,2950.4,3.38930389]
[1752552842138,0.0340265,2950.7,2950.6,3.38914119]
[1752552842293,6.5870265,2950.7,2950.6,3.38914119]
[1752552842491,6.553,2950.7,2950.6,3.84204119]
[1752552842712,6.549,2950.7,2950.5,0.1688]
[1752552843143,0.0340265,2950.6,2950.2,3.38952127]
[1752552843304,0.0340265,2950.6,2950.0,0.4549]
[1752552843305,6.546,2950.5,2950.3,0.1688]
[1752552843525,6.546,2950.5,2950.4,3.38937093]
[1752552843762,6.546,2950.5,2950.3,3.55828291]
[1752552843763,6.546,2950.5,2950.3,3.55826413]
[1752552843969,6.5800265,2950.5,2950.3,3.55826413]
[1752552844172,6.546,2950.5,2950.4,3.38937093]
[1752552844468,6.546,2950.5,2950.4,10.69476351]
[1752552844469,6.541,2950.5,2950.4,10.69476351]
[1752552844764,6.541,2950.5,2950.4,14.70583444]
[1752552845458,6.541,2950.5,2950.4,14.01107093]
[1752552845763,6.541,2950.5,2950.4,13.55817093]
[1752552845942,6.541,2950.5,2950.4,14.01107093]
[1752552846113,0.0340265,2950.9,2950.8,3.38891148]
[1752552846312,0.0340265,2951.2,2950.9,3.38879663]
[1752552846530,6.525,2951.1,2950.9,3.38879663]
[1752552846713,6.525,2951.1,2951.0,3.3886818]
[1752552846917,6.525,2951.1,2951.0,3.38863766]
[1752552847118,6.525,2951.1,2950.9,3.3887418]
[1752552847732,6.525,2951.2,2951.1,3.38856697]
[1752552847946,8.133,2951.4,2951.2,3.38837867]
[1752552848143,8.133,2951.4,2951.0,0.1688]
[1752552848144,6.524,2951.3,2951.0,0.1688]
[1752552848423,6.5580265,2951.3,2951.1,3.38856697]
[1752552848751,6.5580265,2951.3,2951.2,3.38845215]
[1752552848920,6.5580265,2951.3,2951.1,3.3885145]
[1752552849321,6.5580265,2951.3,2951.2,3.38845215]
[1752552849819,8.9415,2951.4,2951.2,3.38845215]
[1752552849820,8.133,2951.4,2951.3,3.38833734]